Workbook

Sheet Model input and output
A1: Model Input data | Q1: Model output data
A2: YEAR [UTC] | B2: MONTH [UTC] | C2: DAY [UTC] | D2: HOUR [UTC] | E2: Time (h) | F2: Time(s) | G2: irradiance (W/m2) | H2: Irradiance heat absorbres x6.25(W/m2) | I2: Soil Temperature '(C) | J2: Ambient temperature'(C) | M2: Rad EXTRAPOLADA | N2: DAY - HOUR [UTC] | O2: DAY [UTC] | P2: HOUR [UTC] | Q2: time (s) | R2: time(h) | S2: Temp sup | T2: Temp inf | U2: Delta T | V2: P (W) | W2: E (J) | X2: month
A3: 2016 | B3: 1 | C3: 1 | D3: 0 | E3: 0 | F3: 0 | G3: 0 | H3: =G3*6.25 -> 0 | I3: 12.88592171 | J3: 9.7 | M3: =VLOOKUP(Q3,$F$3:$H$8786,3,TRUE) -> 0 | N3: =CONVERT(Q3,"sec","day") -> 00:15:00 | O3: =CONVERT(Q3,"sec","day") -> 00:15:00 | P3: =CONVERT(Q3,"sec","day") -> 00:15:00 | Q3: 900 | R3: =Q3/60^2 -> 0.25 | S3: 18.536 | T3: 20.811 | U3: =S3-T3 -> -2.275 | V3: =IF(0.0006604*U3^2+0.0002417*U3-0.0000611>0,0.0006604*U3^2+0.0002417*U3-0.0000611,0) -> 0.00280701525 | W3: =V3*Q3 -> 2.53 | X3: 1
A4: 2016 | B4: 1 | C4: 1 | D4: 1 | E4: =E3+1 -> 1 | F4: =E4*60^2 -> 3600 | G4: 0 | H4: =G4*6.25 -> 0 | I4: 12.87949929 | J4: 9.8 | M4: =VLOOKUP(Q4,$F$3:$H$8786,3,TRUE) -> 0 | N4: =CONVERT(Q4,"sec","day") -> 00:30:00 | O4: =CONVERT(Q4,"sec","day") -> 00:30:00 | P4: =CONVERT(Q4,"sec","day") -> 00:30:00 | Q4: 1800 | R4: =Q4/60^2 -> 0.5 | S4: 18.084 | T4: 20.285 | U4: =S4-T4 -> -2.201 | V4: =IF(0.0006604*U4^2+0.0002417*U4-0.0000611>0,0.0006604*U4^2+0.0002417*U4-0.0000611,0) -> 0.00260616072 | W4: =V4*(Q4-Q3) -> 2.35 | X4: 1
A5: 2016 | B5: 1 | C5: 1 | D5: 2 | E5: =E4+1 -> 2 | F5: =E5*60^2 -> 7200 | G5: 0 | H5: 0 | I5: 12.87307946 | J5: 9.7 | M5: 0 | N5: 00:45:00 | O5: 00:45:00 | P5: 00:45:00 | Q5: 2700 | R5: 0.75 | S5: 17.753 | T5: 19.862 | U5: -2.109 | V5: 0.002366535312 | W5: =V5*(Q5-Q4) -> 2.13 | X5: 1
A6: 2016 | B6: 1 | C6: 1 | D6: 3 | E6: 3 | F6: 10800 | G6: 0 | H6: 0 | I6: 12.8666622 | J6: 8.3 | M6: 0 | N6: 01:00:00 | O6: 01:00:00 | P6: 01:00:00 | Q6: 3600 | R6: 1 | S6: 17.461 | T6: 19.486 | U6: -2.025 | V6: 0.00215751025 | W6: 1.94 | X6: 1
A7: 2016 | B7: 1 | C7: 1 | D7: 4 | E7: 4 | F7: 14400 | G7: 0 | H7: 0 | I7: 12.86024753 | J7: 7.6 | M7: 0 | N7: 01:15:00 | O7: 01:15:00 | P7: 01:15:00 | Q7: 4500 | R7: 1.25 | S7: 17.181 | T7: 19.139 | U7: -1.958 | V7: 0.001997469146 | W7: 1.80 | X7: 1
A8: 2016 | B8: 1 | C8: 1 | D8: 5 | E8: 5 | F8: 18000 | G8: 0 | H8: 0 | I8: 12.85383545 | J8: 6.5 | M8: 0 | N8: 01:30:00 | O8: 01:30:00 | P8: 01:30:00 | Q8: 5400 | R8: 1.5 | S8: 16.922 | T8: 18.818 | U8: -1.896 | V8: 0.001854653286 | W8: 1.67 | X8: 1
A9: 2016 | B9: 1 | C9: 1 | D9: 6 | E9: 6 | F9: 21600 | G9: 0 | H9: 0 | I9: 12.84742596 | J9: 5.5 | M9: 0 | N9: 01:45:00 | O9: 01:45:00 | P9: 01:45:00 | Q9: 6300 | R9: 1.75 | S9: 16.679 | T9: 18.518 | U9: -1.839 | V9: 0.001727834328 | W9: 1.56 | X9: 1
A10: 2016 | B10: 1 | C10: 1 | D10: 7 | E10: 7 | F10: 25200 | G10: 22.01 | H10: 137.5625 | I10: 12.84101907 | J10: 5.1 | M10: 0 | N10: 02:00:00 | O10: 02:00:00 | P10: 02:00:00 | Q10: 7200 | R10: 2 | S10: 16.452 | T10: 18.238 | U10: -1.786 | V10: 0.001613765078 | W10: 1.45 | X10: 1
A11: 2016 | B11: 1 | C11: 1 | D11: 8 | E11: 8 | F11: 28800 | G11: 72.65 | H11: 454.0625 | I11: 12.83461477 | J11: 5.8 | M11: 0 | N11: 02:15:00 | O11: 02:15:00 | P11: 02:15:00 | Q11: 8100 | R11: 2.25 | S11: 16.148 | T11: 17.944 | U11: -1.796 | V11: 0.001635003606 | W11: 1.47 | X11: 1
A12: 2016 | B12: 1 | C12: 1 | D12: 9 | E12: 9 | F12: 32400 | G12: 56.2 | H12: 351.25 | I12: 12.82821308 | J12: 7.1 | M12: 0 | N12: 02:30:00 | O12: 02:30:00 | P12: 02:30:00 | Q12: 9000 | R12: 2.5 | S12: 15.843 | T12: 17.651 | U12: -1.808 | V12: 0.001660664186 | W12: 1.49 | X12: 1
A13: 2016 | B13: 1 | C13: 1 | D13: 10 | E13: 10 | F13: 36000 | G13: 101.65 | H13: 635.3125 | I13: 12.82181399 | J13: 7.9 | M13: 0 | N13: 02:45:00 | O13: 02:45:00 | P13: 02:45:00 | Q13: 9900 | R13: 2.75 | S13: 15.54 | T13: 17.361 | U13: -1.821 | V13: 0.001688677776 | W13: 1.52 | X13: 1
A14: 2016 | B14: 1 | C14: 1 | D14: 11 | E14: 11 | F14: 39600 | G14: 210.1 | H14: 1313.125 | I14: 12.81541751 | J14: 12.4 | M14: 0 | N14: 03:00:00 | O14: 03:00:00 | P14: 03:00:00 | Q14: 10800 | R14: 3 | S14: 15.239 | T14: 17.073 | U14: -1.834 | V14: 0.001716914582 | W14: 1.55 | X14: 1
A15: 2016 | B15: 1 | C15: 1 | D15: 12 | E15: 12 | F15: 43200 | G15: 346.01 | H15: 2162.5625 | I15: 12.80902364 | J15: 14.2 | M15: 0 | N15: 03:15:00 | O15: 03:15:00 | P15: 03:15:00 | Q15: 11700 | R15: 3.25 | S15: 14.99 | T15: 16.805 | U15: -1.815 | V15: 0.00167572069 | W15: 1.51 | X15: 1
A16: 2016 | B16: 1 | C16: 1 | D16: 13 | E16: 13 | F16: 46800 | G16: 281.81 | H16: 1761.3125 | I16: 12.80263239 | J16: 14.9 | M16: 0 | N16: 03:30:00 | O16: 03:30:00 | P16: 03:30:00 | Q16: 12600 | R16: 3.5 | S16: 14.748 | T16: 16.546 | U16: -1.798 | V16: 0.001639267162 | W16: 1.48 | X16: 1
A17: 2016 | B17: 1 | C17: 1 | D17: 14 | E17: 14 | F17: 50400 | G17: 159.16 | H17: 994.75 | I17: 12.79624375 | J17: 15.1 | M17: 0 | N17: 03:45:00 | O17: 03:45:00 | P17: 03:45:00 | Q17: 13500 | R17: 3.75 | S17: 14.513 | T17: 16.294 | U17: -1.781 | V17: 0.001603195344 | W17: 1.44 | X17: 1
A18: 2016 | B18: 1 | C18: 1 | D18: 15 | E18: 15 | F18: 54000 | G18: 39.48 | H18: 246.75 | I18: 12.78985773 | J18: 13.7 | M18: 0 | N18: 04:00:00 | O18: 04:00:00 | P18: 04:00:00 | Q18: 14400 | R18: 4 | S18: 14.283 | T18: 16.05 | U18: -1.767 | V18: 0.001573775756 | W18: 1.42 | X18: 1
A19: 2016 | B19: 1 | C19: 1 | D19: 16 | E19: 16 | F19: 57600 | G19: 0 | H19: 0 | I19: 12.78347434 | J19: 12.7 | M19: 0 | N19: 04:15:00 | O19: 04:15:00 | P19: 04:15:00 | Q19: 15300 | R19: 4.25 | S19: 14.029 | T19: 15.802 | U19: -1.773 | V19: 0.001586352452 | W19: 1.43 | X19: 1
A20: 2016 | B20: 1 | C20: 1 | D20: 17 | E20: 17 | F20: 61200 | G20: 0 | H20: 0 | I20: 12.77709358 | J20: 12.4 | M20: 0 | N20: 04:30:00 | O20: 04:30:00 | P20: 04:30:00 | Q20: 16200 | R20: 4.5 | S20: 13.776 | T20: 15.555 | U20: -1.779 | V20: 0.001598976696 | W20: 1.44 | X20: 1
A21: 2016 | B21: 1 | C21: 1 | D21: 18 | E21: 18 | F21: 64800 | G21: 0 | H21: 0 | I21: 12.77071545 | J21: 11.9 | M21: 0 | N21: 04:45:00 | O21: 04:45:00 | P21: 04:45:00 | Q21: 17100 | R21: 4.75 | S21: 13.525 | T21: 15.309 | U21: -1.784 | V21: 0.001609533222 | W21: 1.45 | X21: 1
A22: 2016 | B22: 1 | C22: 1 | D22: 19 | E22: 19 | F22: 68400 | G22: 0 | H22: 0 | I22: 12.76433995 | J22: 12 | M22: 0 | N22: 05:00:00 | O22: 05:00:00 | P22: 05:00:00 | Q22: 18000 | R22: 5 | S22: 13.274 | T22: 15.065 | U22: -1.791 | V22: 0.001624367832 | W22: 1.46 | X22: 1
A23: 2016 | B23: 1 | C23: 1 | D23: 20 | E23: 20 | F23: 72000 | G23: 0 | H23: 0 | I23: 12.7579671 | J23: 11.9 | M23: 0 | N23: 05:15:00 | O23: 05:15:00 | P23: 05:15:00 | Q23: 18900 | R23: 5.25 | S23: 13.032 | T23: 14.825 | U23: -1.793 | V23: 0.00162861818 | W23: 1.47 | X23: 1
A24: 2016 | B24: 1 | C24: 1 | D24: 21 | E24: 21 | F24: 75600 | G24: 0 | H24: 0 | I24: 12.75159688 | J24: 11.5 | M24: 0 | N24: 05:30:00 | O24: 05:30:00 | P24: 05:30:00 | Q24: 19800 | R24: 5.5 | S24: 12.791 | T24: 14.587 | U24: -1.796 | V24: 0.001635003606 | W24: 1.47 | X24: 1
A25: 2016 | B25: 1 | C25: 1 | D25: 22 | E25: 22 | F25: 79200 | G25: 0 | H25: 0 | I25: 12.7452293 | J25: 11.3 | M25: 0 | N25: 05:45:00 | O25: 05:45:00 | P25: 05:45:00 | Q25: 20700 | R25: 5.75 | S25: 12.552 | T25: 14.351 | U25: -1.799 | V25: 0.00164140092 | W25: 1.48 | X25: 1
A26: 2016 | B26: 1 | C26: 1 | D26: 23 | E26: 23 | F26: 82800 | G26: 0 | H26: 0 | I26: 12.73886438 | J26: 10.9 | M26: 0 | N26: 06:00:00 | O26: 06:00:00 | P26: 06:00:00 | Q26: 21600 | R26: 6 | S26: 12.315 | T26: 14.117 | U26: -1.802 | V26: 0.001647810122 | W26: 1.48 | X26: 1
A27: 2016 | B27: 1 | C27: 2 | D27: 0 | E27: 24 | F27: 86400 | G27: 0 | H27: 0 | I27: 12.7325021 | J27: 10.9 | M27: 0 | N27: 06:15:00 | O27: 06:15:00 | P27: 06:15:00 | Q27: 22500 | R27: 6.25 | S27: 12.142 | T27: 13.905 | U27: -1.763 | V27: 0.001565417708 | W27: 1.41 | X27: 1
A28: 2016 | B28: 1 | C28: 2 | D28: 1 | E28: 25 | F28: 90000 | G28: 0 | H28: 0 | I28: 12.72614248 | J28: 11 | M28: 0 | N28: 06:30:00 | O28: 06:30:00 | P28: 06:30:00 | Q28: 23400 | R28: 6.5 | S28: 11.978 | T28: 13.704 | U28: -1.726 | V28: 0.00148910759 | W28: 1.34 | X28: 1
A29: 2016 | B29: 1 | C29: 2 | D29: 2 | E29: 26 | F29: 93600 | G29: 0 | H29: 0 | I29: 12.71978551 | J29: 11.2 | M29: 0 | N29: 06:45:00 | O29: 06:45:00 | P29: 06:45:00 | Q29: 24300 | R29: 6.75 | S29: 11.822 | T29: 13.511 | U29: -1.689 | V29: 0.001414605648 | W29: 1.27 | X29: 1
A30: 2016 | B30: 1 | C30: 2 | D30: 3 | E30: 27 | F30: 97200 | G30: 0 | H30: 0 | I30: 12.71343121 | J30: 11.3 | M30: 137.5625 | N30: 07:00:00 | O30: 07:00:00 | P30: 07:00:00 | Q30: 25200 | R30: 7 | S30: 11.671 | T30: 13.326 | U30: -1.655 | V30: 0.00134773861 | W30: 1.21 | X30: 1
A31: 2016 | B31: 1 | C31: 2 | D31: 4 | E31: 28 | F31: 100800 | G31: 0 | H31: 0 | I31: 12.70707957 | J31: 11.1 | M31: 137.5625 | N31: 07:15:00 | O31: 07:15:00 | P31: 07:15:00 | Q31: 26100 | R31: 7.25 | S31: 11.631 | T31: 13.183 | U31: -1.552 | V31: 0.001154489722 | W31: 1.04 | X31: 1
A32: 2016 | B32: 1 | C32: 2 | D32: 5 | E32: 29 | F32: 104400 | G32: 0 | H32: 0 | I32: 12.7007306 | J32: 11.9 | M32: 137.5625 | N32: 07:30:00 | O32: 07:30:00 | P32: 07:30:00 | Q32: 27000 | R32: 7.5 | S32: 11.61 | T32: 13.062 | U32: -1.452 | V32: 0.0009802755616 | W32: 0.88 | X32: 1
A33: 2016 | B33: 1 | C33: 2 | D33: 6 | E33: 30 | F33: 108000 | G33: 0 | H33: 0 | I33: 12.69438429 | J33: 12.5 | M33: 137.5625 | N33: 07:45:00 | O33: 07:45:00 | P33: 07:45:00 | Q33: 27900 | R33: 7.75 | S33: 11.603 | T33: 12.959 | U33: -1.356 | V33: 0.0008254560544 | W33: 0.74 | X33: 1
A34: 2016 | B34: 1 | C34: 2 | D34: 7 | E34: 31 | F34: 111600 | G34: 51.49 | H34: 321.8125 | I34: 12.68804066 | J34: 10.7 | M34: 454.0625 | N34: 08:00:00 | O34: 08:00:00 | P34: 08:00:00 | Q34: 28800 | R34: 8 | S34: 11.609 | T34: 12.873 | U34: -1.264 | V34: 0.0006885096384 | W34: 0.62 | X34: 1
A35: 2016 | B35: 1 | C35: 2 | D35: 8 | E35: 32 | F35: 115200 | G35: 166.65 | H35: 1041.5625 | I35: 12.68169971 | J35: 11.3 | M35: 454.0625 | N35: 08:15:00 | O35: 08:15:00 | P35: 08:15:00 | Q35: 29700 | R35: 8.25 | S35: 11.605 | T35: 12.798 | U35: -1.193 | V35: 0.0005904655396 | W35: 0.53 | X35: 1
A36: 2016 | B36: 1 | C36: 2 | D36: 9 | E36: 33 | F36: 118800 | G36: 160.85 | H36: 1005.3125 | I36: 12.67536144 | J36: 14.4 | M36: 454.0625 | N36: 08:30:00 | O36: 08:30:00 | P36: 08:30:00 | Q36: 30600 | R36: 8.5 | S36: 11.611 | T36: 12.735 | U36: -1.124 | V36: 0.0005015627104 | W36: 0.45 | X36: 1
A37: 2016 | B37: 1 | C37: 2 | D37: 10 | E37: 34 | F37: 122400 | G37: 198.8 | H37: 1242.5 | I37: 12.66902585 | J37: 14.2 | M37: 454.0625 | N37: 08:45:00 | O37: 08:45:00 | P37: 08:45:00 | Q37: 31500 | R37: 8.75 | S37: 11.627 | T37: 12.684 | U37: -1.057 | V37: 0.0004212543396 | W37: 0.38 | X37: 1
A38: 2016 | B38: 1 | C38: 2 | D38: 11 | E38: 35 | F38: 126000 | G38: 187.45 | H38: 1171.5625 | I38: 12.66269294 | J38: 13.8 | M38: 351.25 | N38: 09:00:00 | O38: 09:00:00 | P38: 09:00:00 | Q38: 32400 | R38: 9 | S38: 11.651 | T38: 12.644 | U38: -0.993 | V38: 0.0003500786596 | W38: 0.32 | X38: 1
A39: 2016 | B39: 1 | C39: 2 | D39: 12 | E39: 36 | F39: 129600 | G39: 17.55 | H39: 109.6875 | I39: 12.65636273 | J39: 13.4 | M39: 351.25 | N39: 09:15:00 | O39: 09:15:00 | P39: 09:15:00 | Q39: 33300 | R39: 9.25 | S39: 11.707 | T39: 12.62 | U39: -0.913 | V39: 0.0002687168676 | W39: 0.24 | X39: 1
A40: 2016 | B40: 1 | C40: 2 | D40: 13 | E40: 37 | F40: 133200 | G40: 48.1 | H40: 300.625 | I40: 12.65003521 | J40: 12.5 | M40: 351.25 | N40: 09:30:00 | O40: 09:30:00 | P40: 09:30:00 | Q40: 34200 | R40: 9.5 | S40: 11.773 | T40: 12.607 | U40: -0.834 | V40: 0.0001966673824 | W40: 0.18 | X40: 1
A41: 2016 | B41: 1 | C41: 2 | D41: 14 | E41: 38 | F41: 136800 | G41: 7.4 | H41: 46.25 | I41: 12.64371038 | J41: 11.2 | M41: 351.25 | N41: 09:45:00 | O41: 09:45:00 | P41: 09:45:00 | Q41: 35100 | R41: 9.75 | S41: 11.847 | T41: 12.605 | U41: -0.758 | V41: 0.0001351334656 | W41: 0.12 | X41: 1
A42: 2016 | B42: 1 | C42: 2 | D42: 15 | E42: 39 | F42: 140400 | G42: 39.1 | H42: 244.375 | I42: 12.63738826 | J42: 10.6 | M42: 635.3125 | N42: 10:00:00 | O42: 10:00:00 | P42: 10:00:00 | Q42: 36000 | R42: 10 | S42: 11.929 | T42: 12.612 | U42: -0.683 | V42: 8.18882356e-05 | W42: 0.07 | X42: 1
A43: 2016 | B43: 1 | C43: 2 | D43: 16 | E43: 40 | F43: 144000 | G43: 0 | H43: 0 | I43: 12.63106884 | J43: 9.5 | M43: 635.3125 | N43: 10:15:00 | O43: 10:15:00 | P43: 10:15:00 | Q43: 36900 | R43: 10.25 | S43: 12.339 | T43: 12.736 | U43: -0.397 | V43: 0 | W43: 0.00 | X43: 1
A44: 2016 | B44: 1 | C44: 2 | D44: 17 | E44: 41 | F44: 147600 | G44: 0 | H44: 0 | I44: 12.62475212 | J44: 7.8 | M44: 635.3125 | N44: 10:30:00 | O44: 10:30:00 | P44: 10:30:00 | Q44: 37800 | R44: 10.5 | S44: 12.797 | T44: 12.916 | U44: -0.119 | V44: 0 | W44: 0.00 | X44: 1
A45: 2016 | B45: 1 | C45: 2 | D45: 18 | E45: 42 | F45: 151200 | G45: 0 | H45: 0 | I45: 12.61843811 | J45: 6.6 | M45: 635.3125 | N45: 10:45:00 | O45: 10:45:00 | P45: 10:45:00 | Q45: 38700 | R45: 10.75 | S45: 13.292 | T45: 13.141 | U45: 0.151 | V45: 0 | W45: 0.00 | X45: 1
A46: 2016 | B46: 1 | C46: 2 | D46: 19 | E46: 43 | F46: 154800 | G46: 0 | H46: 0 | I46: 12.61212681 | J46: 5.9 | M46: 1313.125 | N46: 11:00:00 | O46: 11:00:00 | P46: 11:00:00 | Q46: 39600 | R46: 11 | S46: 13.819 | T46: 13.408 | U46: 0.411 | V46: 0.0001497941284 | W46: 0.13 | X46: 1
A47: 2016 | B47: 1 | C47: 2 | D47: 20 | E47: 44 | F47: 158400 | G47: 0 | H47: 0 | I47: 12.60581824 | J47: 5.1 | M47: 1313.125 | N47: 11:15:00 | O47: 11:15:00 | P47: 11:15:00 | Q47: 40500 | R47: 11.25 | S47: 14.213 | T47: 13.656 | U47: 0.557 | V47: 0.0002784153396 | W47: 0.25 | X47: 1
A48: 2016 | B48: 1 | C48: 2 | D48: 21 | E48: 45 | F48: 162000 | G48: 0 | H48: 0 | I48: 12.59951237 | J48: 4.5 | M48: 1313.125 | N48: 11:30:00 | O48: 11:30:00 | P48: 11:30:00 | Q48: 41400 | R48: 11.5 | S48: 14.612 | T48: 13.912 | U48: 0.7 | V48: 0.000431686 | W48: 0.39 | X48: 1
A49: 2016 | B49: 1 | C49: 2 | D49: 22 | E49: 46 | F49: 165600 | G49: 0 | H49: 0 | I49: 12.59320923 | J49: 4.3 | M49: 1313.125 | N49: 11:45:00 | O49: 11:45:00 | P49: 11:45:00 | Q49: 42300 | R49: 11.75 | S49: 15.02 | T49: 14.181 | U49: 0.839 | V49: 0.0006065557284 | W49: 0.55 | X49: 1
A50: 2016 | B50: 1 | C50: 2 | D50: 23 | E50: 47 | F50: 169200 | G50: 0 | H50: 0 | I50: 12.58690882 | J50: 4 | M50: 2162.5625 | N50: 12:00:00 | O50: 12:00:00 | P50: 12:00:00 | Q50: 43200 | R50: 12 | S50: 15.437 | T50: 14.461 | U50: 0.976 | V50: 0.0008038803904 | W50: 0.72 | X50: 1
A51: 2016 | B51: 1 | C51: 3 | D51: 0 | E51: 48 | F51: 172800 | G51: 0 | H51: 0 | I51: 12.58061114 | J51: 3.7 | M51: 2162.5625 | N51: 12:15:00 | O51: 12:15:00 | P51: 12:15:00 | Q51: 44100 | R51: 12.25 | S51: 15.595 | T51: 14.67 | U51: 0.925 | V51: 0.00072752725 | W51: 0.65 | X51: 1
A52: 2016 | B52: 1 | C52: 3 | D52: 1 | E52: 49 | F52: 176400 | G52: 0 | H52: 0 | I52: 12.57431618 | J52: 4.5 | M52: 2162.5625 | N52: 12:30:00 | O52: 12:30:00 | P52: 12:30:00 | Q52: 45000 | R52: 12.5 | S52: 15.73 | T52: 14.855 | U52: 0.875 | V52: 0.00065600625 | W52: 0.59 | X52: 1
A53: 2016 | B53: 1 | C53: 3 | D53: 2 | E53: 50 | F53: 180000 | G53: 0 | H53: 0 | I53: 12.56802396 | J53: 5.4 | M53: 2162.5625 | N53: 12:45:00 | O53: 12:45:00 | P53: 12:45:00 | Q53: 45900 | R53: 12.75 | S53: 15.851 | T53: 15.022 | U53: 0.829 | V53: 0.0005931232564 | W53: 0.53 | X53: 1
A54: 2016 | B54: 1 | C54: 3 | D54: 3 | E54: 51 | F54: 183600 | G54: 0 | H54: 0 | I54: 12.56173448 | J54: 4.9 | M54: 1761.3125 | N54: 13:00:00 | O54: 13:00:00 | P54: 13:00:00 | Q54: 46800 | R54: 13 | S54: 15.959 | T54: 15.174 | U54: 0.785 | V54: 0.00053558949 | W54: 0.48 | X54: 1
A55: 2016 | B55: 1 | C55: 3 | D55: 4 | E55: 52 | F55: 187200 | G55: 0 | H55: 0 | I55: 12.55544774 | J55: 4.5 | M55: 1761.3125 | N55: 13:15:00 | O55: 13:15:00 | P55: 13:15:00 | Q55: 47700 | R55: 13.25 | S55: 15.966 | T55: 15.283 | U55: 0.683 | V55: 0.0004120504356 | W55: 0.37 | X55: 1
A56: 2016 | B56: 1 | C56: 3 | D56: 5 | E56: 53 | F56: 190800 | G56: 0 | H56: 0 | I56: 12.54916375 | J56: 4 | M56: 1761.3125 | N56: 13:30:00 | O56: 13:30:00 | P56: 13:30:00 | Q56: 48600 | R56: 13.5 | S56: 15.952 | T56: 15.368 | U56: 0.584 | V56: 0.0003052861824 | W56: 0.27 | X56: 1
A57: 2016 | B57: 1 | C57: 3 | D57: 6 | E57: 54 | F57: 194400 | G57: 0 | H57: 0 | I57: 12.5428825 | J57: 4.4 | M57: 1761.3125 | N57: 13:45:00 | O57: 13:45:00 | P57: 13:45:00 | Q57: 49500 | R57: 13.75 | S57: 15.922 | T57: 15.433 | U57: 0.489 | V57: 0.0002150068084 | W57: 0.19 | X57: 1
A58: 2016 | B58: 1 | C58: 3 | D58: 7 | E58: 55 | F58: 198000 | G58: 2.9 | H58: 18.125 | I58: 12.536604 | J58: 5.7 | M58: 994.75 | N58: 14:00:00 | O58: 14:00:00 | P58: 14:00:00 | Q58: 50400 | R58: 14 | S58: 15.877 | T58: 15.478 | U58: 0.399 | V58: 0.0001404746404 | W58: 0.13 | X58: 1
A59: 2016 | B59: 1 | C59: 3 | D59: 8 | E59: 56 | F59: 201600 | G59: 79.85 | H59: 499.0625 | I59: 12.53032826 | J59: 6.2 | M59: 994.75 | N59: 14:15:00 | O59: 14:15:00 | P59: 14:15:00 | Q59: 51300 | R59: 14.25 | S59: 15.708 | T59: 15.469 | U59: 0.239 | V59: 3.43890084e-05 | W59: 0.03 | X59: 1
A60: 2016 | B60: 1 | C60: 3 | D60: 9 | E60: 57 | F60: 205200 | G60: 145.9 | H60: 911.875 | I60: 12.52405528 | J60: 7.2 | M60: 994.75 | N60: 14:26:46 | O60: 14:26:46 | P60: 14:26:46 | Q60: 52006 | R60: 14.44611111 | S60: 15.558 | T60: 15.441 | U60: 0.117 | V60: 0 | W60: 0.00 | X60: 1
A61: 2016 | B61: 1 | C61: 3 | D61: 10 | E61: 58 | F61: 208800 | G61: 313.66 | H61: 1960.375 | I61: 12.51778505 | J61: 9.5 | M61: 994.75 | N61: 14:38:32 | O61: 14:38:32 | P61: 14:38:32 | Q61: 52712 | R61: 14.64222222 | S61: 15.395 | T61: 15.395 | U61: 0 | V61: 0 | W61: 0.00 | X61: 1
A62: 2016 | B62: 1 | C62: 3 | D62: 11 | E62: 59 | F62: 212400 | G62: 197 | H62: 1231.25 | I62: 12.51151759 | J62: 11 | M62: 994.75 | N62: 14:53:32 | O62: 14:53:32 | P62: 14:53:32 | Q62: 53612 | R62: 14.89222222 | S62: 15.165 | T62: 15.311 | U62: -0.146 | V62: 0 | W62: 0.00 | X62: 1
A63: 2016 | B63: 1 | C63: 3 | D63: 12 | E63: 60 | F63: 216000 | G63: 374.61 | H63: 2341.3125 | I63: 12.5052529 | J63: 11.2 | M63: 246.75 | N63: 15:00:00 | O63: 15:00:00 | P63: 15:00:00 | Q63: 54000 | R63: 15 | S63: 15.063 | T63: 15.27 | U63: -0.207 | V63: 0 | W63: 0.00 | X63: 1
A64: 2016 | B64: 1 | C64: 3 | D64: 13 | E64: 61 | F64: 219600 | G64: 207.55 | H64: 1297.1875 | I64: 12.49899098 | J64: 11.8 | M64: 246.75 | N64: 15:15:00 | O64: 15:15:00 | P64: 15:15:00 | Q64: 54900 | R64: 15.25 | S64: 14.912 | T64: 15.185 | U64: -0.273 | V64: 0 | W64: 0.00 | X64: 1
A65: 2016 | B65: 1 | C65: 3 | D65: 14 | E65: 62 | F65: 223200 | G65: 29.65 | H65: 185.3125 | I65: 12.49273183 | J65: 11.6 | M65: 246.75 | N65: 15:30:00 | O65: 15:30:00 | P65: 15:30:00 | Q65: 55800 | R65: 15.5 | S65: 14.756 | T65: 15.091 | U65: -0.335 | V65: 0 | W65: 0.00 | X65: 1
A66: 2016 | B66: 1 | C66: 3 | D66: 15 | E66: 63 | F66: 226800 | G66: 24.11 | H66: 150.6875 | I66: 12.48647545 | J66: 11.2 | M66: 246.75 | N66: 15:45:00 | O66: 15:45:00 | P66: 15:45:00 | Q66: 56700 | R66: 15.75 | S66: 14.594 | T66: 14.99 | U66: -0.396 | V66: 0 | W66: 0.00 | X66: 1
A67: 2016 | B67: 1 | C67: 3 | D67: 16 | E67: 64 | F67: 230400 | G67: 0 | H67: 0 | I67: 12.48022186 | J67: 10.6 | M67: 0 | N67: 16:00:00 | O67: 16:00:00 | P67: 16:00:00 | Q67: 57600 | R67: 16 | S67: 14.426 | T67: 14.881 | U67: -0.455 | V67: 0 | W67: 0.00 | X67: 1
A68: 2016 | B68: 1 | C68: 3 | D68: 17 | E68: 65 | F68: 234000 | G68: 0 | H68: =G68*6.25 -> 0 | I68: 12.47397105 | J68: 10.2 | M68: =VLOOKUP(Q68,$F$3:$H$8786,3,TRUE) -> 0 | N68: =CONVERT(Q68,"sec","day") -> 16:15:00 | O68: =CONVERT(Q68,"sec","day") -> 16:15:00 | P68: =CONVERT(Q68,"sec","day") -> 16:15:00 | Q68: 58500 | R68: =Q68/60^2 -> 16.25 | S68: 14.339 | T68: 14.792 | U68: =S68-T68 -> -0.453 | V68: =IF(0.0006604*U68^2+0.0002417*U68-0.0000611>0,0.0006604*U68^2+0.0002417*U68-0.0000611,0) -> 0 | W68: 0.00 | X68: 1
A69: 2016 | B69: 1 | C69: 3 | D69: 18 | E69: =E68+1 -> 66 | F69: =E69*60^2 -> 237600 | G69: 0 | H69: 0 | I69: 12.46772303 | J69: 10.3 | M69: 0 | N69: 16:30:00 | O69: 16:30:00 | P69: 16:30:00 | Q69: 59400 | R69: 16.5 | S69: 14.257 | T69: 14.708 | U69: -0.451 | V69: 0 | W69: =V69*(Q69-Q68) -> 0.00 | X69: 1
A70: 2016 | B70: 1 | C70: 3 | D70: 19 | E70: 67 | F70: 241200 | G70: 0 | H70: 0 | I70: 12.46147779 | J70: 10.5 | M70: 0 | N70: 16:45:00 | O70: 16:45:00 | P70: 16:45:00 | Q70: 60300 | R70: 16.75 | S70: 14.177 | T70: 14.627 | U70: -0.45 | V70: 0 | W70: 0.00 | X70: 1
A71: 2016 | B71: 1 | C71: 3 | D71: 20 | E71: 68 | F71: 244800 | G71: 0 | H71: 0 | I71: 12.45523535 | J71: 10.1 | M71: 0 | N71: 17:00:00 | O71: 17:00:00 | P71: 17:00:00 | Q71: 61200 | R71: 17 | S71: 14.1 | T71: 14.549 | U71: -0.449 | V71: 0 | W71: 0.00 | X71: 1
A72: 2016 | B72: 1 | C72: 3 | D72: 21 | E72: 69 | F72: 248400 | G72: 0 | H72: 0 | I72: 12.44899571 | J72: 9.7 | M72: 0 | N72: 17:15:00 | O72: 17:15:00 | P72: 17:15:00 | Q72: 62100 | R72: 17.25 | S72: 14.01 | T72: 14.468 | U72: -0.458 | V72: 0 | W72: 0.00 | X72: 1
A73: 2016 | B73: 1 | C73: 3 | D73: 22 | E73: 70 | F73: 252000 | G73: 0 | H73: 0 | I73: 12.44275886 | J73: 11.9 | M73: 0 | N73: 17:30:00 | O73: 17:30:00 | P73: 17:30:00 | Q73: 63000 | R73: 17.5 | S73: 13.919 | T73: 14.387 | U73: -0.468 | V73: 0 | W73: 0.00 | X73: 1
A74: 2016 | B74: 1 | C74: 3 | D74: 23 | E74: 71 | F74: 255600 | G74: 0 | H74: 0 | I74: 12.43652481 | J74: 13 | M74: 0 | N74: 17:45:00 | O74: 17:45:00 | P74: 17:45:00 | Q74: 63900 | R74: 17.75 | S74: 13.829 | T74: 14.306 | U74: -0.477 | V74: 0 | W74: 0.00 | X74: 1
A75: 2016 | B75: 1 | C75: 4 | D75: 0 | E75: 72 | F75: 259200 | G75: 0 | H75: 0 | I75: 12.43029358 | J75: 12.8 | M75: 0 | N75: 18:00:00 | O75: 18:00:00 | P75: 18:00:00 | Q75: 64800 | R75: 18 | S75: 13.739 | T75: 14.225 | U75: -0.486 | V75: 0 | W75: 0.00 | X75: 1
A76: 2016 | B76: 1 | C76: 4 | D76: 1 | E76: 73 | F76: 262800 | G76: 0 | H76: 0 | I76: 12.42406514 | J76: 11.1 | M76: 0 | N76: 18:15:00 | O76: 18:15:00 | P76: 18:15:00 | Q76: 65700 | R76: 18.25 | S76: 13.691 | T76: 14.158 | U76: -0.467 | V76: 0 | W76: 0.00 | X76: 1
A77: 2016 | B77: 1 | C77: 4 | D77: 2 | E77: 74 | F77: 266400 | G77: 0 | H77: 0 | I77: 12.41783953 | J77: 10.3 | M77: 0 | N77: 18:30:00 | O77: 18:30:00 | P77: 18:30:00 | Q77: 66600 | R77: 18.5 | S77: 13.648 | T77: 14.097 | U77: -0.449 | V77: 0 | W77: 0.00 | X77: 1
A78: 2016 | B78: 1 | C78: 4 | D78: 3 | E78: 75 | F78: 270000 | G78: 0 | H78: 0 | I78: 12.41161672 | J78: 9.9 | M78: 0 | N78: 18:45:00 | O78: 18:45:00 | P78: 18:45:00 | Q78: 67500 | R78: 18.75 | S78: 13.609 | T78: 14.042 | U78: -0.433 | V78: 0 | W78: 0.00 | X78: 1
A79: 2016 | B79: 1 | C79: 4 | D79: 4 | E79: 76 | F79: 273600 | G79: 0 | H79: 0 | I79: 12.40539674 | J79: 9.8 | M79: 0 | N79: 19:00:00 | O79: 19:00:00 | P79: 19:00:00 | Q79: 68400 | R79: 19 | S79: 13.574 | T79: 13.991 | U79: -0.417 | V79: 0 | W79: 0.00 | X79: 1
A80: 2016 | B80: 1 | C80: 4 | D80: 5 | E80: 77 | F80: 277200 | G80: 0 | H80: 0 | I80: 12.39917957 | J80: 9.6 | M80: 0 | N80: 19:15:00 | O80: 19:15:00 | P80: 19:15:00 | Q80: 69300 | R80: 19.25 | S80: 13.528 | T80: 13.939 | U80: -0.411 | V80: 0 | W80: 0.00 | X80: 1
A81: 2016 | B81: 1 | C81: 4 | D81: 6 | E81: 78 | F81: 280800 | G81: 0 | H81: 0 | I81: 12.39296523 | J81: 9.7 | M81: 0 | N81: 19:30:00 | O81: 19:30:00 | P81: 19:30:00 | Q81: 70200 | R81: 19.5 | S81: 13.483 | T81: 13.889 | U81: -0.406 | V81: 0 | W81: 0.00 | X81: 1
A82: 2016 | B82: 1 | C82: 4 | D82: 7 | E82: 79 | F82: 284400 | G82: 5.6 | H82: 35 | I82: 13.60769845 | J82: 9.9 | M82: 0 | N82: 19:45:00 | O82: 19:45:00 | P82: 19:45:00 | Q82: 71100 | R82: 19.75 | S82: 13.439 | T82: 13.84 | U82: -0.401 | V82: 0 | W82: 0.00 | X82: 1
A83: 2016 | B83: 1 | C83: 4 | D83: 8 | E83: 80 | F83: 288000 | G83: 22.3 | H83: 139.375 | I83: 13.60172437 | J83: 9.2 | M83: 0 | N83: 20:00:00 | O83: 20:00:00 | P83: 20:00:00 | Q83: 72000 | R83: 20 | S83: 13.397 | T83: 13.793 | U83: -0.396 | V83: 0 | W83: 0.00 | X83: 1
A84: 2016 | B84: 1 | C84: 4 | D84: 9 | E84: 81 | F84: 291600 | G84: 76.55 | H84: 478.4375 | I84: 13.5957525 | J84: 9.2 | M84: 0 | N84: 20:15:00 | O84: 20:15:00 | P84: 20:15:00 | Q84: 72900 | R84: 20.25 | S84: 13.334 | T84: 13.74 | U84: -0.406 | V84: 0 | W84: 0.00 | X84: 1
A85: 2016 | B85: 1 | C85: 4 | D85: 10 | E85: 82 | F85: 295200 | G85: 162.45 | H85: 1015.3125 | I85: 13.58978284 | J85: 9.7 | M85: 0 | N85: 20:30:00 | O85: 20:30:00 | P85: 20:30:00 | Q85: 73800 | R85: 20.5 | S85: 13.27 | T85: 13.685 | U85: -0.415 | V85: 0 | W85: 0.00 | X85: 1
A86: 2016 | B86: 1 | C86: 4 | D86: 11 | E86: 83 | F86: 298800 | G86: 211 | H86: 1318.75 | I86: 12.36193601 | J86: 10.2 | M86: 0 | N86: 20:45:00 | O86: 20:45:00 | P86: 20:45:00 | Q86: 74700 | R86: 20.75 | S86: 13.204 | T86: 13.628 | U86: -0.424 | V86: 0 | W86: 0.00 | X86: 1
A87: 2016 | B87: 1 | C87: 4 | D87: 12 | E87: 84 | F87: 302400 | G87: 123.3 | H87: 770.625 | I87: 12.35573868 | J87: 10.8 | M87: 0 | N87: 21:00:00 | O87: 21:00:00 | P87: 21:00:00 | Q87: 75600 | R87: 21 | S87: 13.137 | T87: 13.57 | U87: -0.433 | V87: 0 | W87: 0.00 | X87: 1
A88: 2016 | B88: 1 | C88: 4 | D88: 13 | E88: 85 | F88: 306000 | G88: 22.9 | H88: 143.125 | I88: 12.34954421 | J88: 11.3 | M88: 0 | N88: 21:15:00 | O88: 21:15:00 | P88: 21:15:00 | Q88: 76500 | R88: 21.25 | S88: 13.084 | T88: 13.516 | U88: -0.432 | V88: 0 | W88: 0.00 | X88: 1
A89: 2016 | B89: 1 | C89: 4 | D89: 14 | E89: 86 | F89: 309600 | G89: 57.9 | H89: 361.875 | I89: 12.34335258 | J89: 11.1 | M89: 0 | N89: 21:30:00 | O89: 21:30:00 | P89: 21:30:00 | Q89: 77400 | R89: 21.5 | S89: 13.032 | T89: 13.463 | U89: -0.431 | V89: 0 | W89: 0.00 | X89: 1
A90: 2016 | B90: 1 | C90: 4 | D90: 15 | E90: 87 | F90: 313200 | G90: 28.39 | H90: 177.4375 | I90: 12.3371638 | J90: 11 | M90: 0 | N90: 21:45:00 | O90: 21:45:00 | P90: 21:45:00 | Q90: 78300 | R90: 21.75 | S90: 12.98 | T90: 13.411 | U90: -0.431 | V90: 0 | W90: 0.00 | X90: 1
A91: 2016 | B91: 1 | C91: 4 | D91: 16 | E91: 88 | F91: 316800 | G91: 0 | H91: 0 | I91: 12.33097788 | J91: 10.6 | M91: 0 | N91: 22:00:00 | O91: 22:00:00 | P91: 22:00:00 | Q91: 79200 | R91: 22 | S91: 12.929 | T91: 13.359 | U91: -0.43 | V91: 0 | W91: 0.00 | X91: 1
A92: 2016 | B92: 1 | C92: 4 | D92: 17 | E92: 89 | F92: 320400 | G92: 0 | H92: 0 | I92: 12.32479482 | J92: 10.4 | M92: 0 | N92: 22:15:00 | O92: 22:15:00 | P92: 22:15:00 | Q92: 80100 | R92: 22.25 | S92: 12.864 | T92: 13.303 | U92: -0.439 | V92: 0 | W92: 0.00 | X92: 1
A93: 2016 | B93: 1 | C93: 4 | D93: 18 | E93: 90 | F93: 324000 | G93: 0 | H93: 0 | I93: 12.31861462 | J93: 10.2 | M93: 0 | N93: 22:30:00 | O93: 22:30:00 | P93: 22:30:00 | Q93: 81000 | R93: 22.5 | S93: 12.797 | T93: 13.246 | U93: -0.449 | V93: 0 | W93: 0.00 | X93: 1
A94: 2016 | B94: 1 | C94: 4 | D94: 19 | E94: 91 | F94: 327600 | G94: 0 | H94: 0 | I94: 12.31243729 | J94: 10.2 | M94: 0 | N94: 22:45:00 | O94: 22:45:00 | P94: 22:45:00 | Q94: 81900 | R94: 22.75 | S94: 12.73 | T94: 13.187 | U94: -0.457 | V94: 0 | W94: 0.00 | X94: 1
A95: 2016 | B95: 1 | C95: 4 | D95: 20 | E95: 92 | F95: 331200 | G95: 0 | H95: 0 | I95: 12.30626282 | J95: 10.1 | M95: 0 | N95: 23:00:00 | O95: 23:00:00 | P95: 23:00:00 | Q95: 82800 | R95: 23 | S95: 12.661 | T95: 13.127 | U95: -0.466 | V95: 0 | W95: 0.00 | X95: 1
A96: 2016 | B96: 1 | C96: 4 | D96: 21 | E96: 93 | F96: 334800 | G96: 0 | H96: 0 | I96: 12.30009123 | J96: 10.1 | M96: 0 | N96: 23:15:00 | O96: 23:15:00 | P96: 23:15:00 | Q96: 83700 | R96: 23.25 | S96: 12.621 | T96: 13.076 | U96: -0.455 | V96: 0 | W96: 0.00 | X96: 1
A97: 2016 | B97: 1 | C97: 4 | D97: 22 | E97: 94 | F97: 338400 | G97: 0 | H97: 0 | I97: 12.29392252 | J97: 10.1 | M97: 0 | N97: 23:30:00 | O97: 23:30:00 | P97: 23:30:00 | Q97: 84600 | R97: 23.5 | S97: 12.583 | T97: 13.028 | U97: -0.445 | V97: 0 | W97: 0.00 | X97: 1
A98: 2016 | B98: 1 | C98: 4 | D98: 23 | E98: 95 | F98: 342000 | G98: 0 | H98: 0 | I98: 12.28775668 | J98: 9.9 | M98: 0 | N98: 23:45:00 | O98: 23:45:00 | P98: 23:45:00 | Q98: 85500 | R98: 23.75 | S98: 12.547 | T98: 12.983 | U98: -0.436 | V98: 0 | W98: 0.00 | X98: 1
A99: 2016 | B99: 1 | C99: 5 | D99: 0 | E99: 96 | F99: 345600 | G99: 0 | H99: 0 | I99: 12.28159372 | J99: 9.7 | M99: 0 | N99: 1900-01-01 | O99: 1900-01-01 | P99: 1 | Q99: 86400 | R99: 24 | S99: 12.513 | T99: 12.939 | U99: -0.426 | V99: 0 | W99: 0.00 | X99: 1
A100: 2016 | B100: 1 | C100: 5 | D100: 1 | E100: 97 | F100: 349200 | G100: 0 | H100: 0 | I100: 12.27543365 | J100: 9.6 | M100: 0 | N100: 1900-01-01T00:15:00 | O100: 1900-01-01T00:15:00 | P100: 1.010416667 | Q100: 87300 | R100: 24.25 | S100: 12.487 | T100: 12.901 | U100: -0.414 | V100: 0 | W100: 0.00 | X100: 1
A101: 2016 | B101: 1 | C101: 5 | D101: 2 | E101: 98 | F101: 352800 | G101: 0 | H101: 0 | I101: 12.26927646 | J101: 9.6 | M101: 0 | N101: 1900-01-01T00:30:00 | O101: 1900-01-01T00:30:00 | P101: 1.020833333 | Q101: 88200 | R101: 24.5 | S101: 12.464 | T101: 12.865 | U101: -0.401 | V101: 0 | W101: 0.00 | X101: 1
A102: 2016 | B102: 1 | C102: 5 | D102: 3 | E102: 99 | F102: 356400 | G102: 0 | H102: 0 | I102: 12.26312217 | J102: 9.4 | M102: 0 | N102: 1900-01-01T00:45:00 | O102: 1900-01-01T00:45:00 | P102: 1.03125 | Q102: 89100 | R102: 24.75 | S102: 12.443 | T102: 12.832 | U102: -0.389 | V102: 0 | W102: 0.00 | X102: 1
A103: 2016 | B103: 1 | C103: 5 | D103: 4 | E103: 100 | F103: 360000 | G103: 0 | H103: 0 | I103: 12.25697077 | J103: 9.1 | M103: 0 | N103: 1900-01-01T01:00:00 | O103: 1900-01-01T01:00:00 | P103: 1.041666667 | Q103: 90000 | R103: 25 | S103: 12.424 | T103: 12.801 | U103: -0.377 | V103: 0 | W103: 0.00 | X103: 1
A104: 2016 | B104: 1 | C104: 5 | D104: 5 | E104: 101 | F104: 363600 | G104: 0 | H104: 0 | I104: 12.25082227 | J104: 9.1 | M104: 0 | N104: 1900-01-01T01:15:00 | O104: 1900-01-01T01:15:00 | P104: 1.052083333 | Q104: 90900 | R104: 25.25 | S104: 12.414 | T104: 12.775 | U104: -0.361 | V104: 0 | W104: 0.00 | X104: 1
A105: 2016 | B105: 1 | C105: 5 | D105: 6 | E105: 102 | F105: 367200 | G105: 0 | H105: 0 | I105: 12.24467667 | J105: 9 | M105: 0 | N105: 1900-01-01T01:30:00 | O105: 1900-01-01T01:30:00 | P105: 1.0625 | Q105: 91800 | R105: 25.5 | S105: 12.406 | T105: 12.752 | U105: -0.346 | V105: 0 | W105: 0.00 | X105: 1
A106: 2016 | B106: 1 | C106: 5 | D106: 7 | E106: 103 | F106: 370800 | G106: 32.83 | H106: 205.1875 | I106: 13.46493648 | J106: 9 | M106: 0 | N106: 1900-01-01T01:45:00 | O106: 1900-01-01T01:45:00 | P106: 1.072916667 | Q106: 92700 | R106: 25.75 | S106: 12.4 | T106: 12.732 | U106: -0.332 | V106: 0 | W106: 0.00 | X106: 1
A107: 2016 | B107: 1 | C107: 5 | D107: 8 | E107: 104 | F107: 374400 | G107: 140.1 | H107: 875.625 | I107: 12.23239418 | J107: 9.4 | M107: 0 | N107: 1900-01-01T02:00:00 | O107: 1900-01-01T02:00:00 | P107: 1.083333333 | Q107: 93600 | R107: 26 | S107: 12.397 | T107: 12.714 | U107: -0.317 | V107: 0 | W107: 0.00 | X107: 1
A108: 2016 | B108: 1 | C108: 5 | D108: 9 | E108: 105 | F108: 378000 | G108: 131.5 | H108: 821.875 | I108: 12.2262573 | J108: 9 | M108: 0 | N108: 1900-01-01T02:15:00 | O108: 1900-01-01T02:15:00 | P108: 1.09375 | Q108: 94500 | R108: 26.25 | S108: 12.388 | T108: 12.696 | U108: -0.308 | V108: 0 | W108: 0.00 | X108: 1
A109: 2016 | B109: 1 | C109: 5 | D109: 10 | E109: 106 | F109: 381600 | G109: 281.7 | H109: 1760.625 | I109: 12.22012333 | J109: 9.9 | M109: 0 | N109: 1900-01-01T02:30:00 | O109: 1900-01-01T02:30:00 | P109: 1.104166667 | Q109: 95400 | R109: 26.5 | S109: 12.38 | T109: 12.679 | U109: -0.299 | V109: 0 | W109: 0.00 | X109: 1
A110: 2016 | B110: 1 | C110: 5 | D110: 11 | E110: 107 | F110: 385200 | G110: 19.65 | H110: 122.8125 | I110: 12.21399228 | J110: 9.8 | M110: 0 | N110: 1900-01-01T02:45:00 | O110: 1900-01-01T02:45:00 | P110: 1.114583333 | Q110: 96300 | R110: 26.75 | S110: 12.372 | T110: 12.663 | U110: -0.291 | V110: 0 | W110: 0.00 | X110: 1
A111: 2016 | B111: 1 | C111: 5 | D111: 12 | E111: 108 | F111: 388800 | G111: 99.95 | H111: 624.6875 | I111: 12.20786415 | J111: 9.6 | M111: 0 | N111: 1900-01-01T03:00:00 | O111: 1900-01-01T03:00:00 | P111: 1.125 | Q111: 97200 | R111: 27 | S111: 12.366 | T111: 12.648 | U111: -0.282 | V111: 0 | W111: 0.00 | X111: 1
A112: 2016 | B112: 1 | C112: 5 | D112: 13 | E112: 109 | F112: 392400 | G112: 233.1 | H112: 1456.875 | I112: 13.42944947 | J112: 9.3 | M112: 0 | N112: 1900-01-01T03:15:00 | O112: 1900-01-01T03:15:00 | P112: 1.135416667 | Q112: 98100 | R112: 27.25 | S112: 12.339 | T112: 12.627 | U112: -0.288 | V112: 0 | W112: 0.00 | X112: 1
A113: 2016 | B113: 1 | C113: 5 | D113: 14 | E113: 110 | F113: 396000 | G113: 56.1 | H113: 350.625 | I113: 12.19561665 | J113: 9.6 | M113: 0 | N113: 1900-01-01T03:30:00 | O113: 1900-01-01T03:30:00 | P113: 1.145833333 | Q113: 99000 | R113: 27.5 | S113: 12.31 | T113: 12.604 | U113: -0.294 | V113: 0 | W113: 0.00 | X113: 1
A114: 2016 | B114: 1 | C114: 5 | D114: 15 | E114: 111 | F114: 399600 | G114: 0 | H114: 0 | I114: 13.41763882 | J114: 9 | M114: 0 | N114: 1900-01-01T03:45:00 | O114: 1900-01-01T03:45:00 | P114: 1.15625 | Q114: 99900 | R114: 27.75 | S114: 12.28 | T114: 12.579 | U114: -0.299 | V114: 0 | W114: 0.00 | X114: 1
A115: 2016 | B115: 1 | C115: 5 | D115: 16 | E115: 112 | F115: 403200 | G115: 0 | H115: 0 | I115: 13.41173695 | J115: 7.2 | M115: 0 | N115: 1900-01-01T04:00:00 | O115: 1900-01-01T04:00:00 | P115: 1.166666667 | Q115: 1.01E+05 | R115: 28 | S115: 12.249 | T115: 12.553 | U115: -0.304 | V115: 0 | W115: 0.00 | X115: 1
A116: 2016 | B116: 1 | C116: 5 | D116: 17 | E116: 113 | F116: 406800 | G116: 0 | H116: 0 | I116: 12.17726738 | J116: 6.9 | M116: 0 | N116: 1900-01-01T04:15:00 | O116: 1900-01-01T04:15:00 | P116: 1.177083333 | Q116: 1.02E+05 | R116: 28.25 | S116: 12.287 | T116: 12.55 | U116: -0.263 | V116: 0 | W116: 0.00 | X116: 1
A117: 2016 | B117: 1 | C117: 5 | D117: 18 | E117: 114 | F117: 410400 | G117: 0 | H117: 0 | I117: 12.17115683 | J117: 7.2 | M117: 0 | N117: 1900-01-01T04:30:00 | O117: 1900-01-01T04:30:00 | P117: 1.1875 | Q117: 1.03E+05 | R117: 28.5 | S117: 12.334 | T117: 12.556 | U117: -0.222 | V117: 0 | W117: 0.00 | X117: 1
A118: 2016 | B118: 1 | C118: 5 | D118: 19 | E118: 115 | F118: 414000 | G118: 0 | H118: 0 | I118: 13.39404518 | J118: 6.5 | M118: 0 | N118: 1900-01-01T04:45:00 | O118: 1900-01-01T04:45:00 | P118: 1.197916667 | Q118: 1.04E+05 | R118: 28.75 | S118: 12.387 | T118: 12.57 | U118: -0.183 | V118: 0 | W118: 0.00 | X118: 1
A119: 2016 | B119: 1 | C119: 5 | D119: 20 | E119: 116 | F119: 417600 | G119: 0 | H119: 0 | I119: 13.38815255 | J119: 5.8 | M119: 0 | N119: 1900-01-01T05:00:00 | O119: 1900-01-01T05:00:00 | P119: 1.208333333 | Q119: 1.04E+05 | R119: 29 | S119: 12.445 | T119: 12.59 | U119: -0.145 | V119: 0 | W119: 0.00 | X119: 1
A120: 2016 | B120: 1 | C120: 5 | D120: 21 | E120: 117 | F120: 421200 | G120: 0 | H120: 0 | I120: 12.15284283 | J120: 5.4 | M120: 0 | N120: 1900-01-01T05:15:00 | O120: 1900-01-01T05:15:00 | P120: 1.21875 | Q120: 1.05E+05 | R120: 29.25 | S120: 12.494 | T120: 12.612 | U120: -0.118 | V120: 0 | W120: 0.00 | X120: 1
A121: 2016 | B121: 1 | C121: 5 | D121: 22 | E121: 118 | F121: 424800 | G121: 0 | H121: 0 | I121: 12.14674407 | J121: 4.9 | M121: 0 | N121: 1900-01-01T05:30:00 | O121: 1900-01-01T05:30:00 | P121: 1.229166667 | Q121: 1.06E+05 | R121: 29.5 | S121: 12.545 | T121: 12.638 | U121: -0.093 | V121: 0 | W121: 0.00 | X121: 1
A122: 2016 | B122: 1 | C122: 5 | D122: 23 | E122: 119 | F122: 428400 | G122: 0 | H122: 0 | I122: 12.14064825 | J122: 4 | M122: 0 | N122: 1900-01-01T05:45:00 | O122: 1900-01-01T05:45:00 | P122: 1.239583333 | Q122: 1.07E+05 | R122: 29.75 | S122: 12.6 | T122: 12.667 | U122: -0.067 | V122: 0 | W122: 0.00 | X122: 1
A123: 2016 | B123: 1 | C123: 6 | D123: 0 | E123: 120 | F123: 432000 | G123: 0 | H123: 0 | I123: 12.13455539 | J123: 3.1 | M123: 0 | N123: 1900-01-01T06:00:00 | O123: 1900-01-01T06:00:00 | P123: 1.25 | Q123: 1.08E+05 | R123: 30 | S123: 12.656 | T123: 12.699 | U123: -0.043 | V123: 0 | W123: 0.00 | X123: 1
A124: 2016 | B124: 1 | C124: 6 | D124: 1 | E124: 121 | F124: 435600 | G124: 0 | H124: 0 | I124: 12.1284655 | J124: 2.4 | M124: 0 | N124: 1900-01-01T06:15:00 | O124: 1900-01-01T06:15:00 | P124: 1.260416667 | Q124: 1.09E+05 | R124: 30.25 | S124: 12.596 | T124: 12.691 | U124: -0.095 | V124: 0 | W124: 0.00 | X124: 1
A125: 2016 | B125: 1 | C125: 6 | D125: 2 | E125: 122 | F125: 439200 | G125: 0 | H125: 0 | I125: 12.12237856 | J125: 2.2 | M125: 0 | N125: 1900-01-01T06:30:00 | O125: 1900-01-01T06:30:00 | P125: 1.270833333 | Q125: 1.10E+05 | R125: 30.5 | S125: 12.52 | T125: 12.665 | U125: -0.145 | V125: 0 | W125: 0.00 | X125: 1
A126: 2016 | B126: 1 | C126: 6 | D126: 3 | E126: 123 | F126: 442800 | G126: 0 | H126: 0 | I126: 13.34696922 | J126: 2 | M126: 0 | N126: 1900-01-01T06:44:10 | O126: 1900-01-01T06:44:10 | P126: 1.280671296 | Q126: 1.11E+05 | R126: 30.73611111 | S126: 12.44 | T126: 12.63 | U126: -0.19 | V126: 0 | W126: 0.00 | X126: 1
A127: 2016 | B127: 1 | C127: 6 | D127: 4 | E127: 124 | F127: 446400 | G127: 0 | H127: 0 | I127: 12.11021359 | J127: 1.8 | M127: 0 | N127: 1900-01-01T06:52:00 | O127: 1900-01-01T06:52:00 | P127: 1.286111111 | Q127: 1.11E+05 | R127: 30.86666667 | S127: 12.392 | T127: 12.607 | U127: -0.215 | V127: 0 | W127: 0.00 | X127: 1
A128: 2016 | B128: 1 | C128: 6 | D128: 5 | E128: 125 | F128: 450000 | G128: 0 | H128: 0 | I128: 12.10413557 | J128: 1.2 | M128: 321.8125 | N128: 1900-01-01T07:00:00 | O128: 1900-01-01T07:00:00 | P128: 1.291666667 | Q128: 1.12E+05 | R128: 31 | S128: 12.342 | T128: 12.58 | U128: -0.238 | V128: 0 | W128: 0.00 | X128: 1
A129: 2016 | B129: 1 | C129: 6 | D129: 6 | E129: 126 | F129: 453600 | G129: 0 | H129: 0 | I129: 12.09806051 | J129: 1.4 | M129: 321.8125 | N129: 1900-01-01T07:15:00 | O129: 1900-01-01T07:15:00 | P129: 1.302083333 | Q129: 1.13E+05 | R129: 31.25 | S129: 12.468 | T129: 12.595 | U129: -0.127 | V129: 0 | W129: 0.00 | X129: 1
A130: 2016 | B130: 1 | C130: 6 | D130: 7 | E130: 127 | F130: 457200 | G130: 58.78 | H130: 367.375 | I130: 12.09198844 | J130: 2.1 | M130: 321.8125 | N130: 1900-01-01T07:25:20 | O130: 1900-01-01T07:25:20 | P130: 1.309259259 | Q130: 1.13E+05 | R130: 31.42222222 | S130: 12.566 | T130: 12.618 | U130: -0.052 | V130: 0 | W130: 0.00 | X130: 1
A131: 2016 | B131: 1 | C131: 6 | D131: 8 | E131: 128 | F131: 460800 | G131: 201.36 | H131: 1258.5 | I131: 12.08591935 | J131: 5.2 | M131: 321.8125 | N131: 1900-01-01T07:35:30 | O131: 1900-01-01T07:35:30 | P131: 1.316319444 | Q131: 1.14E+05 | R131: 31.59166667 | S131: 12.672 | T131: 12.649 | U131: 0.023 | V131: 0 | W131: 0.00 | X131: 1
A132: 2016 | B132: 1 | C132: 6 | D132: 9 | E132: 129 | F132: 464400 | G132: 323.06 | H132: =G132*6.25 -> 2019.125 | I132: 12.07985324 | J132: 8.6 | M132: =VLOOKUP(Q132,$F$3:$H$8786,3,TRUE) -> 321.8125 | N132: =CONVERT(Q132,"sec","day") -> 1900-01-01T07:50:30 | O132: =CONVERT(Q132,"sec","day") -> 1900-01-01T07:50:30 | P132: =CONVERT(Q132,"sec","day") -> 1.326736111 | Q132: 1.15E+05 | R132: =Q132/60^2 -> 31.84166667 | S132: 12.84 | T132: 12.713 | U132: =S132-T132 -> 0.127 | V132: =IF(0.0006604*U132^2+0.0002417*U132-0.0000611>0,0.0006604*U132^2+0.0002417*U132-0.0000611,0) -> 0 | W132: 0.00 | X132: 1
A133: 2016 | B133: 1 | C133: 6 | D133: 10 | E133: =E132+1 -> 130 | F133: =E133*60^2 -> 468000 | G133: 402.31 | H133: 2514.4375 | I133: 12.07379013 | J133: 9.7 | M133: 1041.5625 | N133: 1900-01-01T08:00:00 | O133: 1900-01-01T08:00:00 | P133: 1.333333333 | Q133: 1.15E+05 | R133: 32 | S133: 12.95 | T133: 12.759 | U133: 0.191 | V133: 9.1567524e-06 | W133: =V133*(Q133-Q132) -> 0.01 | X133: 1
A134: 2016 | B134: 1 | C134: 6 | D134: 11 | E134: 131 | F134: 471600 | G134: 428.96 | H134: 2681 | I134: 12.06773 | J134: 10.7 | M134: 1041.5625 | N134: 1900-01-01T08:15:00 | O134: 1900-01-01T08:15:00 | P134: 1.34375 | Q134: 1.16E+05 | R134: 32.25 | S134: 13.197 | T134: 12.873 | U134: 0.324 | V134: 8.65369504e-05 | W134: 0.08 | X134: 1
A135: 2016 | B135: 1 | C135: 6 | D135: 12 | E135: 132 | F135: 475200 | G135: 399.86 | H135: 2499.125 | I135: 12.06167286 | J135: 11.9 | M135: 1041.5625 | N135: 1900-01-01T08:30:00 | O135: 1900-01-01T08:30:00 | P135: 1.354166667 | Q135: 1.17E+05 | R135: 32.5 | S135: 13.466 | T135: 13.013 | U135: 0.453 | V135: 0.0001839101236 | W135: 0.17 | X135: 1
A136: 2016 | B136: 1 | C136: 6 | D136: 13 | E136: 133 | F136: 478800 | G136: 317.66 | H136: 1985.375 | I136: 12.05561873 | J136: 12.4 | M136: 1041.5625 | N136: 1900-01-01T08:45:00 | O136: 1900-01-01T08:45:00 | P136: 1.364583333 | Q136: 1.18E+05 | R136: 32.75 | S136: 13.752 | T136: 13.176 | U136: 0.576 | V136: 0.0002972240704 | W136: 0.27 | X136: 1
A137: 2016 | B137: 1 | C137: 6 | D137: 14 | E137: 134 | F137: 482400 | G137: 194.66 | H137: 1216.625 | I137: 12.04956759 | J137: 12.8 | M137: 1005.3125 | N137: 1900-01-01T09:00:00 | O137: 1900-01-01T09:00:00 | P137: 1.375 | Q137: 1.19E+05 | R137: 33 | S137: 14.054 | T137: 13.358 | U137: 0.696 | V137: 0.0004270315264 | W137: 0.38 | X137: 1
A138: 2016 | B138: 1 | C138: 6 | D138: 15 | E138: 135 | F138: 486000 | G138: 49.8 | H138: 311.25 | I138: 12.04351946 | J138: 11.5 | M138: 1005.3125 | N138: 1900-01-01T09:15:00 | O138: 1900-01-01T09:15:00 | P138: 1.385416667 | Q138: 1.20E+05 | R138: 33.25 | S138: 14.18 | T138: 13.492 | U138: 0.688 | V138: 0.0004177859776 | W138: 0.38 | X138: 1
A139: 2016 | B139: 1 | C139: 6 | D139: 16 | E139: 136 | F139: 489600 | G139: 0 | H139: 0 | I139: 12.03747433 | J139: 10.5 | M139: 1005.3125 | N139: 1900-01-01T09:30:00 | O139: 1900-01-01T09:30:00 | P139: 1.395833333 | Q139: 1.21E+05 | R139: 33.5 | S139: 14.294 | T139: 13.613 | U139: 0.681 | V139: 0.0004097654644 | W139: 0.37 | X139: 1
A140: 2016 | B140: 1 | C140: 6 | D140: 17 | E140: 137 | F140: 493200 | G140: 0 | H140: 0 | I140: 12.03143222 | J140: 9.8 | M140: 1005.3125 | N140: 1900-01-01T09:45:00 | O140: 1900-01-01T09:45:00 | P140: 1.40625 | Q140: 1.22E+05 | R140: 33.75 | S140: 14.401 | T140: 13.725 | U140: 0.676 | V140: 0.0004040761504 | W140: 0.36 | X140: 1
A141: 2016 | B141: 1 | C141: 6 | D141: 18 | E141: 138 | F141: 496800 | G141: 0 | H141: 0 | I141: 12.02539311 | J141: 8.9 | M141: 1242.5 | N141: 1900-01-01T10:00:00 | O141: 1900-01-01T10:00:00 | P141: 1.416666667 | Q141: 1.22E+05 | R141: 34 | S141: 14.502 | T141: 13.83 | U141: 0.672 | V141: 0.0003995484736 | W141: 0.36 | X141: 1
A142: 2016 | B142: 1 | C142: 6 | D142: 19 | E142: 139 | F142: 500400 | G142: 0 | H142: 0 | I142: 12.01935702 | J142: 9.4 | M142: 1242.5 | N142: 1900-01-01T10:15:00 | O142: 1900-01-01T10:15:00 | P142: 1.427083333 | Q142: 1.23E+05 | R142: 34.25 | S142: 14.537 | T142: 13.911 | U142: 0.626 | V142: 0.0003489991104 | W142: 0.31 | X142: 1
A143: 2016 | B143: 1 | C143: 6 | D143: 20 | E143: 140 | F143: 504000 | G143: 0 | H143: 0 | I143: 12.01332395 | J143: 9.4 | M143: 1242.5 | N143: 1900-01-01T10:30:00 | O143: 1900-01-01T10:30:00 | P143: 1.4375 | Q143: 1.24E+05 | R143: 34.5 | S143: 14.561 | T143: 13.979 | U143: 0.582 | V143: 0.0003032627296 | W143: 0.27 | X143: 1
A144: 2016 | B144: 1 | C144: 6 | D144: 21 | E144: 141 | F144: 507600 | G144: 0 | H144: 0 | I144: 12.00729391 | J144: 8.9 | M144: 1242.5 | N144: 1900-01-01T10:45:00 | O144: 1900-01-01T10:45:00 | P144: 1.447916667 | Q144: 1.25E+05 | R144: 34.75 | S144: 14.577 | T144: 14.035 | U144: 0.542 | V144: 0.0002639031456 | W144: 0.24 | X144: 1
A145: 2016 | B145: 1 | C145: 6 | D145: 22 | E145: 142 | F145: 511200 | G145: 0 | H145: 0 | I145: 12.00126688 | J145: 7.4 | M145: 1171.5625 | N145: 1900-01-01T11:00:00 | O145: 1900-01-01T11:00:00 | P145: 1.458333333 | Q145: 1.26E+05 | R145: 35 | S145: 14.584 | T145: 14.082 | U145: 0.502 | V145: 0.0002266568416 | W145: 0.20 | X145: 1
A146: 2016 | B146: 1 | C146: 6 | D146: 23 | E146: 143 | F146: 514800 | G146: 0 | H146: 0 | I146: 11.99524289 | J146: 8.4 | M146: 1171.5625 | N146: 1900-01-01T11:15:00 | O146: 1900-01-01T11:15:00 | P146: 1.46875 | Q146: 1.27E+05 | R146: 35.25 | S146: 14.433 | T146: 14.075 | U146: 0.358 | V146: 0.0001100681056 | W146: 0.10 | X146: 1
A147: 2016 | B147: 1 | C147: 7 | D147: 0 | E147: 144 | F147: 518400 | G147: 0 | H147: 0 | I147: 11.98922193 | J147: 8.9 | M147: 1171.5625 | N147: 1900-01-01T11:22:20 | O147: 1900-01-01T11:22:20 | P147: 1.473842593 | Q147: 1.27E+05 | R147: 35.37222222 | S147: 14.353 | T147: 14.065 | U147: 0.288 | V147: 6.32858176e-05 | W147: 0.03 | X147: 1
A148: 2016 | B148: 1 | C148: 7 | D148: 1 | E148: 145 | F148: 522000 | G148: 0 | H148: 0 | I148: 11.983204 | J148: 9.1 | M148: 1171.5625 | N148: 1900-01-01T11:29:40 | O148: 1900-01-01T11:29:40 | P148: 1.478935185 | Q148: 1.28E+05 | R148: 35.49444444 | S148: 14.268 | T148: 14.049 | U148: 0.219 | V148: 2.35057444e-05 | W148: 0.01 | X148: 1
A149: 2016 | B149: 1 | C149: 7 | D149: 2 | E149: 146 | F149: 525600 | G149: 0 | H149: 0 | I149: 11.97718911 | J149: 9.4 | M149: 1171.5625 | N149: 1900-01-01T11:38:40 | O149: 1900-01-01T11:38:40 | P149: 1.485185185 | Q149: 1.28E+05 | R149: 35.64444444 | S149: 14.155 | T149: 14.02 | U149: 0.135 | V149: 0 | W149: 0.00 | X149: 1
A150: 2016 | B150: 1 | C150: 7 | D150: 3 | E150: 147 | F150: 529200 | G150: 0 | H150: 0 | I150: 11.97117726 | J150: 9.2 | M150: 1171.5625 | N150: 1900-01-01T11:50:10 | O150: 1900-01-01T11:50:10 | P150: 1.493171296 | Q150: 1.29E+05 | R150: 35.83611111 | S150: 14.003 | T150: 13.971 | U150: 0.032 | V150: 0 | W150: 0.00 | X150: 1
A151: 2016 | B151: 1 | C151: 7 | D151: 4 | E151: 148 | F151: 532800 | G151: 0 | H151: 0 | I151: 11.96516845 | J151: 9.7 | M151: 109.6875 | N151: 1900-01-01T12:00:00 | O151: 1900-01-01T12:00:00 | P151: 1.5 | Q151: 1.30E+05 | R151: 36 | S151: 13.867 | T151: 13.921 | U151: -0.054 | V151: 0 | W151: 0.00 | X151: 1
A152: 2016 | B152: 1 | C152: 7 | D152: 5 | E152: 149 | F152: 536400 | G152: 0 | H152: 0 | I152: 11.95916269 | J152: 9.8 | M152: 109.6875 | N152: 1900-01-01T12:15:00 | O152: 1900-01-01T12:15:00 | P152: 1.510416667 | Q152: 1.31E+05 | R152: 36.25 | S152: 13.8 | T152: 13.869 | U152: -0.069 | V152: 0 | W152: 0.00 | X152: 1
A153: 2016 | B153: 1 | C153: 7 | D153: 6 | E153: 150 | F153: 540000 | G153: 0 | H153: 0 | I153: 11.95315998 | J153: 9.7 | M153: 109.6875 | N153: 1900-01-01T12:30:00 | O153: 1900-01-01T12:30:00 | P153: 1.520833333 | Q153: 1.31E+05 | R153: 36.5 | S153: 13.736 | T153: 13.819 | U153: -0.083 | V153: 0 | W153: 0.00 | X153: 1
A154: 2016 | B154: 1 | C154: 7 | D154: 7 | E154: 151 | F154: 543600 | G154: 52.41 | H154: 327.5625 | I154: 11.94716032 | J154: 9.6 | M154: 109.6875 | N154: 1900-01-01T12:45:00 | O154: 1900-01-01T12:45:00 | P154: 1.53125 | Q154: 1.32E+05 | R154: 36.75 | S154: 13.672 | T154: 13.768 | U154: -0.096 | V154: 0 | W154: 0.00 | X154: 1
A155: 2016 | B155: 1 | C155: 7 | D155: 8 | E155: 152 | F155: 547200 | G155: 180.81 | H155: 1130.0625 | I155: 11.94116371 | J155: 10.6 | M155: 300.625 | N155: 1900-01-01T13:00:00 | O155: 1900-01-01T13:00:00 | P155: 1.541666667 | Q155: 1.33E+05 | R155: 37 | S155: 13.606 | T155: 13.715 | U155: -0.109 | V155: 0 | W155: 0.00 | X155: 1
A156: 2016 | B156: 1 | C156: 7 | D156: 9 | E156: 153 | F156: 550800 | G156: 214.8 | H156: 1342.5 | I156: 11.93517017 | J156: 12.2 | M156: 300.625 | N156: 1900-01-01T13:15:00 | O156: 1900-01-01T13:15:00 | P156: 1.552083333 | Q156: 1.34E+05 | R156: 37.25 | S156: 13.442 | T156: 13.632 | U156: -0.19 | V156: 0 | W156: 0.00 | X156: 1
A157: 2016 | B157: 1 | C157: 7 | D157: 10 | E157: 154 | F157: 554400 | G157: 219.85 | H157: 1374.0625 | I157: 11.92917969 | J157: 12.5 | M157: 300.625 | N157: 1900-01-01T13:30:00 | O157: 1900-01-01T13:30:00 | P157: 1.5625 | Q157: 1.35E+05 | R157: 37.5 | S157: 13.267 | T157: 13.534 | U157: -0.267 | V157: 0 | W157: 0.00 | X157: 1
A158: 2016 | B158: 1 | C158: 7 | D158: 11 | E158: 155 | F158: 558000 | G158: 368.56 | H158: 2303.5 | I158: 11.92319227 | J158: 13.7 | M158: 300.625 | N158: 1900-01-01T13:45:00 | O158: 1900-01-01T13:45:00 | P158: 1.572916667 | Q158: 1.36E+05 | R158: 37.75 | S158: 13.082 | T158: 13.424 | U158: -0.342 | V158: 0 | W158: 0.00 | X158: 1
A159: 2016 | B159: 1 | C159: 7 | D159: 12 | E159: 156 | F159: 561600 | G159: 321.51 | H159: 2009.4375 | I159: 11.91720792 | J159: 16 | M159: 46.25 | N159: 1900-01-01T14:00:00 | O159: 1900-01-01T14:00:00 | P159: 1.583333333 | Q159: 1.37E+05 | R159: 38 | S159: 12.888 | T159: 13.304 | U159: -0.416 | V159: 0 | W159: 0.00 | X159: 1
A160: 2016 | B160: 1 | C160: 7 | D160: 13 | E160: 157 | F160: 565200 | G160: 279.71 | H160: 1748.1875 | I160: 11.91122664 | J160: 16.7 | M160: 46.25 | N160: 1900-01-01T14:15:00 | O160: 1900-01-01T14:15:00 | P160: 1.59375 | Q160: 1.38E+05 | R160: 38.25 | S160: 12.806 | T160: 13.212 | U160: -0.406 | V160: 0 | W160: 0.00 | X160: 1
A161: 2016 | B161: 1 | C161: 7 | D161: 14 | E161: 158 | F161: 568800 | G161: 57.35 | H161: 358.4375 | I161: 11.90524844 | J161: 16.5 | M161: 46.25 | N161: 1900-01-01T14:30:00 | O161: 1900-01-01T14:30:00 | P161: 1.604166667 | Q161: 1.39E+05 | R161: 38.5 | S161: 12.731 | T161: 13.126 | U161: -0.395 | V161: 0 | W161: 0.00 | X161: 1
A162: 2016 | B162: 1 | C162: 7 | D162: 15 | E162: 159 | F162: 572400 | G162: 37.14 | H162: 232.125 | I162: 11.89927331 | J162: 16.5 | M162: 46.25 | N162: 1900-01-01T14:45:00 | O162: 1900-01-01T14:45:00 | P162: 1.614583333 | Q162: 1.40E+05 | R162: 38.75 | S162: 12.659 | T162: 13.046 | U162: -0.387 | V162: 0 | W162: 0.00 | X162: 1
A163: 2016 | B163: 1 | C163: 7 | D163: 16 | E163: 160 | F163: 576000 | G163: 0 | H163: 0 | I163: 11.89330127 | J163: 15.7 | M163: 244.375 | N163: 1900-01-01T15:00:00 | O163: 1900-01-01T15:00:00 | P163: 1.625 | Q163: 1.40E+05 | R163: 39 | S163: 12.59 | T163: 12.968 | U163: -0.378 | V163: 0 | W163: 0.00 | X163: 1
A164: 2016 | B164: 1 | C164: 7 | D164: 17 | E164: 161 | F164: 579600 | G164: 0 | H164: 0 | I164: 11.8873323 | J164: 15 | M164: 244.375 | N164: 1900-01-01T15:15:00 | O164: 1900-01-01T15:15:00 | P164: 1.635416667 | Q164: 1.41E+05 | R164: 39.25 | S164: 12.421 | T164: 12.863 | U164: -0.442 | V164: 0 | W164: 0.00 | X164: 1
A165: 2016 | B165: 1 | C165: 7 | D165: 18 | E165: 162 | F165: 583200 | G165: 0 | H165: 0 | I165: 11.88136643 | J165: 14.9 | M165: 244.375 | N165: 1900-01-01T15:30:00 | O165: 1900-01-01T15:30:00 | P165: 1.645833333 | Q165: 1.42E+05 | R165: 39.5 | S165: 12.242 | T165: 12.746 | U165: -0.504 | V165: 0 | W165: 0.00 | X165: 1
A166: 2016 | B166: 1 | C166: 7 | D166: 19 | E166: 163 | F166: 586800 | G166: 0 | H166: 0 | I166: 11.87540364 | J166: 14.4 | M166: 244.375 | N166: 1900-01-01T15:45:00 | O166: 1900-01-01T15:45:00 | P166: 1.65625 | Q166: 1.43E+05 | R166: 39.75 | S166: 12.057 | T166: 12.621 | U166: -0.564 | V166: 1.26517984e-05 | W166: 0.01 | X166: 1
A167: 2016 | B167: 1 | C167: 7 | D167: 20 | E167: 164 | F167: 590400 | G167: 0 | H167: 0 | I167: 11.86944394 | J167: 14.5 | M167: 0 | N167: 1900-01-01T16:00:00 | O167: 1900-01-01T16:00:00 | P167: 1.666666667 | Q167: 1.44E+05 | R167: 40 | S167: 11.865 | T167: 12.489 | U167: -0.624 | V167: 4.52231104e-05 | W167: 0.04 | X167: 1
A168: 2016 | B168: 1 | C168: 7 | D168: 21 | E168: 165 | F168: 594000 | G168: 0 | H168: 0 | I168: 11.86348735 | J168: 11.5 | M168: 0 | N168: 1900-01-01T16:15:00 | O168: 1900-01-01T16:15:00 | P168: 1.677083333 | Q168: 1.45E+05 | R168: 40.25 | S168: 11.663 | T168: 12.346 | U168: -0.683 | V168: 8.18882356e-05 | W168: 0.07 | X168: 1
A169: 2016 | B169: 1 | C169: 7 | D169: 22 | E169: 166 | F169: 597600 | G169: 0 | H169: 0 | I169: 11.85753384 | J169: 10.5 | M169: 0 | N169: 1900-01-01T16:30:00 | O169: 1900-01-01T16:30:00 | P169: 1.6875 | Q169: 1.46E+05 | R169: 40.5 | S169: 11.455 | T169: 12.195 | U169: -0.74 | V169: 0.00012167704 | W169: 0.11 | X169: 1
A170: 2016 | B170: 1 | C170: 7 | D170: 23 | E170: 167 | F170: 601200 | G170: 0 | H170: 0 | I170: 11.85158345 | J170: 10.7 | M170: 0 | N170: 1900-01-01T16:45:00 | O170: 1900-01-01T16:45:00 | P170: 1.697916667 | Q170: 1.47E+05 | R170: 40.75 | S170: 11.24 | T170: 12.036 | U170: -0.796 | V170: 0.0001649468064 | W170: 0.15 | X170: 1
A171: 2016 | B171: 1 | C171: 8 | D171: 0 | E171: 168 | F171: 604800 | G171: 0 | H171: 0 | I171: 11.84563615 | J171: 11.4 | M171: 0 | N171: 1900-01-01T17:00:00 | O171: 1900-01-01T17:00:00 | P171: 1.708333333 | Q171: 1.48E+05 | R171: 41 | S171: 11.02 | T171: 11.87 | U171: -0.85 | V171: 0.000210594 | W171: 0.19 | X171: 1
A172: 2016 | B172: 1 | C172: 8 | D172: 1 | E172: 169 | F172: 608400 | G172: 0 | H172: 0 | I172: 11.83969196 | J172: 13.4 | M172: 0 | N172: 1900-01-01T17:15:00 | O172: 1900-01-01T17:15:00 | P172: 1.71875 | Q172: 1.49E+05 | R172: 41.25 | S172: 10.831 | T172: 11.71 | U172: -0.879 | V172: 0.0002366978164 | W172: 0.21 | X172: 1
A173: 2016 | B173: 1 | C173: 8 | D173: 2 | E173: 170 | F173: 612000 | G173: 0 | H173: 0 | I173: 11.83375089 | J173: 14.5 | M173: 0 | N173: 1900-01-01T17:30:00 | O173: 1900-01-01T17:30:00 | P173: 1.729166667 | Q173: 1.49E+05 | R173: 41.5 | S173: 10.641 | T173: 11.549 | U173: -0.908 | V173: 0.0002639124256 | W173: 0.24 | X173: 1
A174: 2016 | B174: 1 | C174: 8 | D174: 3 | E174: 171 | F174: 615600 | G174: 0 | H174: 0 | I174: 11.82781293 | J174: 14.8 | M174: 0 | N174: 1900-01-01T17:45:00 | O174: 1900-01-01T17:45:00 | P174: 1.739583333 | Q174: 1.50E+05 | R174: 41.75 | S174: 10.45 | T174: 11.387 | U174: -0.937 | V174: 0.0002922378276 | W174: 0.26 | X174: 1
A175: 2016 | B175: 1 | C175: 8 | D175: 4 | E175: 172 | F175: 619200 | G175: 0 | H175: 0 | I175: 11.82187808 | J175: 15.4 | M175: 0 | N175: 1900-01-01T18:00:00 | O175: 1900-01-01T18:00:00 | P175: 1.75 | Q175: 1.51E+05 | R175: 42 | S175: 10.258 | T175: 11.224 | U175: -0.966 | V175: 0.0003216740224 | W175: 0.29 | X175: 1
A176: 2016 | B176: 1 | C176: 8 | D176: 5 | E176: 173 | F176: 622800 | G176: 0 | H176: 0 | I176: 11.81594636 | J176: 14.1 | M176: 0 | N176: 1900-01-01T18:15:00 | O176: 1900-01-01T18:15:00 | P176: 1.760416667 | Q176: 1.52E+05 | R176: 42.25 | S176: 10.1 | T176: 11.071 | U176: -0.971 | V176: 0.0003268614964 | W176: 0.29 | X176: 1
A177: 2016 | B177: 1 | C177: 8 | D177: 6 | E177: 174 | F177: 626400 | G177: 0 | H177: 0 | I177: 11.81001775 | J177: 11.3 | M177: 0 | N177: 1900-01-01T18:30:00 | O177: 1900-01-01T18:30:00 | P177: 1.770833333 | Q177: 1.53E+05 | R177: 42.5 | S177: 9.9451 | T177: 10.922 | U177: -0.9769 | V177: 0.000333025186 | W177: 0.30 | X177: 1
A178: 2016 | B178: 1 | C178: 8 | D178: 7 | E178: 175 | F178: 630000 | G178: 52.65 | H178: 329.0625 | I178: 11.80409228 | J178: 10.3 | M178: 0 | N178: 1900-01-01T18:45:00 | O178: 1900-01-01T18:45:00 | P178: 1.78125 | Q178: 1.54E+05 | R178: 42.75 | S178: 9.7929 | T178: 10.776 | U178: -0.9831 | V178: 0.0003395518268 | W178: 0.31 | X178: 1
A179: 2016 | B179: 1 | C179: 8 | D179: 8 | E179: 176 | F179: 633600 | G179: 201.31 | H179: 1258.1875 | I179: 11.79816993 | J179: 11.5 | M179: 0 | N179: 1900-01-01T19:00:00 | O179: 1900-01-01T19:00:00 | P179: 1.791666667 | Q179: 1.55E+05 | R179: 43 | S179: 9.6426 | T179: 10.632 | U179: -0.9894 | V179: 0.0003462357425 | W179: 0.31 | X179: 1
A180: 2016 | B180: 1 | C180: 8 | D180: 9 | E180: 177 | F180: 637200 | G180: 323.26 | H180: 2020.375 | I180: 11.79225072 | J180: 16.6 | M180: 0 | N180: 1900-01-01T19:15:00 | O180: 1900-01-01T19:15:00 | P180: 1.802083333 | Q180: 1.56E+05 | R180: 43.25 | S180: 9.4869 | T180: 10.488 | U180: -1.0011 | V180: 0.0003587878091 | W180: 0.32 | X180: 1
A181: 2016 | B181: 1 | C181: 8 | D181: 10 | E181: 178 | F181: 640800 | G181: 402.81 | H181: 2517.5625 | I181: 11.78633464 | J181: 19.9 | M181: 0 | N181: 1900-01-01T19:30:00 | O181: 1900-01-01T19:30:00 | P181: 1.8125 | Q181: 1.57E+05 | R181: 43.5 | S181: 9.3317 | T181: 10.345 | U181: -1.0133 | V181: 0.0003720688482 | W181: 0.33 | X181: 1
A182: 2016 | B182: 1 | C182: 8 | D182: 11 | E182: 179 | F182: 644400 | G182: 430.21 | H182: 2688.8125 | I182: 11.78042169 | J182: 21.3 | M182: 0 | N182: 1900-01-01T19:45:00 | O182: 1900-01-01T19:45:00 | P182: 1.822916667 | Q182: 1.58E+05 | R182: 43.75 | S182: 9.1771 | T182: 10.202 | U182: -1.0249 | V182: 0.0003848790446 | W182: 0.35 | X182: 1
A183: 2016 | B183: 1 | C183: 8 | D183: 12 | E183: 180 | F183: 648000 | G183: 402.01 | H183: 2512.5625 | I183: 11.77451189 | J183: 22.4 | M183: 0 | N183: 1900-01-01T20:00:00 | O183: 1900-01-01T20:00:00 | P183: 1.833333333 | Q183: 1.58E+05 | R183: 44 | S183: 9.023 | T183: 10.06 | U183: -1.037 | V183: 0.0003984307876 | W183: 0.36 | X183: 1
A184: 2016 | B184: 1 | C184: 8 | D184: 13 | E184: 181 | F184: 651600 | G184: 315.96 | H184: 1974.75 | I184: 11.76860523 | J184: 22.1 | M184: 0 | N184: 1900-01-01T20:15:00 | O184: 1900-01-01T20:15:00 | P184: 1.84375 | Q184: 1.59E+05 | R184: 44.25 | S184: 8.8835 | T184: 9.9235 | U184: -1.04 | V184: 0.00040182064 | W184: 0.36 | X184: 1
A185: 2016 | B185: 1 | C185: 8 | D185: 14 | E185: 182 | F185: 655200 | G185: 195.21 | H185: 1220.0625 | I185: 11.76270172 | J185: 21.5 | M185: 0 | N185: 1900-01-01T20:30:00 | O185: 1900-01-01T20:30:00 | P185: 1.854166667 | Q185: 1.60E+05 | R185: 44.5 | S185: 8.7461 | T185: 9.7896 | U185: -1.0435 | V185: 0.0004057904919 | W185: 0.37 | X185: 1
A186: 2016 | B186: 1 | C186: 8 | D186: 15 | E186: 183 | F186: 658800 | G186: 54.74 | H186: 342.125 | I186: 11.75680136 | J186: 20.3 | M186: 0 | N186: 1900-01-01T20:45:00 | O186: 1900-01-01T20:45:00 | P186: 1.864583333 | Q186: 1.61E+05 | R186: 44.75 | S186: 8.6105 | T186: 9.6577 | U186: -1.0472 | V186: 0.0004100047855 | W186: 0.37 | X186: 1
A187: 2016 | B187: 1 | C187: 8 | D187: 16 | E187: 184 | F187: 662400 | G187: 0 | H187: 0 | I187: 11.75090416 | J187: 17.6 | M187: 0 | N187: 1900-01-01T21:00:00 | O187: 1900-01-01T21:00:00 | P187: 1.875 | Q187: 1.62E+05 | R187: 45 | S187: 8.4762 | T187: 9.5277 | U187: -1.0515 | V187: 0.0004149251959 | W187: 0.37 | X187: 1
A188: 2016 | B188: 1 | C188: 8 | D188: 17 | E188: 185 | F188: 666000 | G188: 0 | H188: 0 | I188: 11.74501011 | J188: 15.5 | M188: 0 | N188: 1900-01-01T21:15:00 | O188: 1900-01-01T21:15:00 | P188: 1.885416667 | Q188: 1.63E+05 | R188: 45.25 | S188: 8.3714 | T188: 9.4089 | U188: -1.0375 | V188: 0.0003989949375 | W188: 0.36 | X188: 1
A189: 2016 | B189: 1 | C189: 8 | D189: 18 | E189: 186 | F189: 669600 | G189: 0 | H189: 0 | I189: 11.73911922 | J189: 16.5 | M189: 0 | N189: 1900-01-01T21:30:00 | O189: 1900-01-01T21:30:00 | P189: 1.895833333 | Q189: 1.64E+05 | R189: 45.5 | S189: 8.2715 | T189: 9.2958 | U189: -1.0243 | V189: 0.0003842120896 | W189: 0.35 | X189: 1
A190: 2016 | B190: 1 | C190: 8 | D190: 19 | E190: 187 | F190: 673200 | G190: 0 | H190: 0 | I190: 11.73323149 | J190: 16.7 | M190: 0 | N190: 1900-01-01T21:45:00 | O190: 1900-01-01T21:45:00 | P190: 1.90625 | Q190: 1.65E+05 | R190: 45.75 | S190: 8.1754 | T190: 9.1876 | U190: -1.0122 | V190: 0.0003708633139 | W190: 0.33 | X190: 1
A191: 2016 | B191: 1 | C191: 8 | D191: 20 | E191: 188 | F191: 676800 | G191: 0 | H191: 0 | I191: 11.72734692 | J191: 16.6 | M191: 0 | N191: 1900-01-01T22:00:00 | O191: 1900-01-01T22:00:00 | P191: 1.916666667 | Q191: 1.66E+05 | R191: 46 | S191: 8.0826 | T191: 9.0835 | U191: -1.0009 | V191: 0.0003585717249 | W191: 0.32 | X191: 1
A192: 2016 | B192: 1 | C192: 8 | D192: 21 | E192: 189 | F192: 680400 | G192: 0 | H192: 0 | I192: 11.72146553 | J192: 16.7 | M192: 0 | N192: 1900-01-01T22:15:00 | O192: 1900-01-01T22:15:00 | P192: 1.927083333 | Q192: 1.67E+05 | R192: 46.25 | S192: 7.9858 | T192: 8.9808 | U192: -0.995 | V192: 0.00035222101 | W192: 0.32 | X192: 1
A193: 2016 | B193: 1 | C193: 8 | D193: 22 | E193: 190 | F193: 684000 | G193: 0 | H193: 0 | I193: 11.7155873 | J193: 14.7 | M193: 0 | N193: 1900-01-01T22:30:00 | O193: 1900-01-01T22:30:00 | P193: 1.9375 | Q193: 1.67E+05 | R193: 46.5 | S193: 7.8908 | T193: 8.8805 | U193: -0.9897 | V193: 0.0003465553318 | W193: 0.31 | X193: 1
A194: 2016 | B194: 1 | C194: 8 | D194: 23 | E194: 191 | F194: 687600 | G194: 0 | H194: 0 | I194: 11.70971225 | J194: 14.3 | M194: 0 | N194: 1900-01-01T22:45:00 | O194: 1900-01-01T22:45:00 | P194: 1.947916667 | Q194: 1.68E+05 | R194: 46.75 | S194: 7.7976 | T194: 8.7826 | U194: -0.985 | V194: 0.00034156209 | W194: 0.31 | X194: 1
A195: 2016 | B195: 1 | C195: 9 | D195: 0 | E195: 192 | F195: 691200 | G195: 0 | H195: 0 | I195: 11.70384038 | J195: 14.6 | M195: 0 | N195: 1900-01-01T23:00:00 | O195: 1900-01-01T23:00:00 | P195: 1.958333333 | Q195: 1.69E+05 | R195: 47 | S195: 7.7062 | T195: 8.6868 | U195: -0.9806 | V195: 0.0003369140081 | W195: 0.30 | X195: 1
A196: 2016 | B196: 1 | C196: 9 | D196: 1 | E196: 193 | F196: 694800 | G196: 0 | H196: =G196*6.25 -> 0 | I196: 11.69797169 | J196: 14.8 | M196: =VLOOKUP(Q196,$F$3:$H$8786,3,TRUE) -> 0 | N196: =CONVERT(Q196,"sec","day") -> 1900-01-01T23:15:00 | O196: =CONVERT(Q196,"sec","day") -> 1900-01-01T23:15:00 | P196: =CONVERT(Q196,"sec","day") -> 1.96875 | Q196: 1.70E+05 | R196: =Q196/60^2 -> 47.25 | S196: 7.6163 | T196: 8.5929 | U196: =S196-T196 -> -0.9766 | V196: =IF(0.0006604*U196^2+0.0002417*U196-0.0000611>0,0.0006604*U196^2+0.0002417*U196-0.0000611,0) -> 0.0003327106686 | W196: 0.30 | X196: 1
A197: 2016 | B197: 1 | C197: 9 | D197: 2 | E197: =E196+1 -> 194 | F197: =E197*60^2 -> 698400 | G197: 0 | H197: 0 | I197: 11.69210618 | J197: 14.9 | M197: 0 | N197: 1900-01-01T23:30:00 | O197: 1900-01-01T23:30:00 | P197: 1.979166667 | Q197: 1.71E+05 | R197: 47.5 | S197: 7.5278 | T197: 8.5009 | U197: -0.9731 | V197: 0.000329050082 | W197: =V197*(Q197-Q196) -> 0.30 | X197: 1
A198: 2016 | B198: 1 | C198: 9 | D198: 3 | E198: 195 | F198: 702000 | G198: 0 | H198: 0 | I198: 11.68624386 | J198: 13.4 | M198: 0 | N198: 1900-01-01T23:45:00 | O198: 1900-01-01T23:45:00 | P198: 1.989583333 | Q198: 1.72E+05 | R198: 47.75 | S198: 7.4406 | T198: 8.4106 | U198: -0.97 | V198: 0.00032582136 | W198: 0.29 | X198: 1
A199: 2016 | B199: 1 | C199: 9 | D199: 4 | E199: 196 | F199: 705600 | G199: 0 | H199: 0 | I199: 11.68038472 | J199: 13 | M199: 0 | N199: 1900-01-02 | O199: 1900-01-02 | P199: 2 | Q199: 1.73E+05 | R199: 48 | S199: 7.3547 | T199: 8.3218 | U199: -0.9671 | V199: 0.0003228124336 | W199: 0.29 | X199: 1
A200: 2016 | B200: 1 | C200: 9 | D200: 5 | E200: 197 | F200: 709200 | G200: 0 | H200: 0 | I200: 11.67452878 | J200: 11.6 | M200: 0 | N200: 1900-01-02T00:15:00 | O200: 1900-01-02T00:15:00 | P200: 2.010416667 | Q200: 1.74E+05 | R200: 48.25 | S200: 7.3475 | T200: 8.261 | U200: -0.9135 | V200: 0.0002691991279 | W200: 0.24 | X200: 1
... 4300 more rows
